bitfinex/quotes_BTCUSD_20250108
["timestamp","ask_amount","ask_price","bid_price","bid_amount"]
[1736363564657,0.00050238,94488.0,94487.0,0.0485]
[1736363564877,0.00050238,94488.0,94487.0,0.433169]
[1736363565087,0.00050238,94488.0,94487.0,0.508869]
[1736363565716,0.00350238,94488.0,94487.0,0.61316876]
[1736363565921,0.00350238,94488.0,94487.0,2.11316876]
[1736363566143,0.00050238,94488.0,94487.0,0.61316876]
[1736363566268,0.00050238,94488.0,94487.0,0.335869]
[1736363566480,0.00150238,94488.0,94487.0,0.34818714]
[1736363566692,0.00050238,94488.0,94487.0,0.52418714]
[1736363566899,0.00050238,94488.0,94487.0,0.50118714]
[1736363567131,0.00150238,94488.0,94487.0,0.50218714]
[1736363567360,0.00050238,94488.0,94487.0,0.50118714]
[1736363567562,0.00050238,94488.0,94487.0,0.52418714]
[1736363567736,0.00150238,94488.0,94487.0,0.6294869]
[1736363568136,0.00050238,94488.0,94487.0,0.6284869]
[1736363568902,0.00050238,94488.0,94487.0,0.6254869]
[1736363569099,0.00050238,94488.0,94487.0,0.6294869]
[1736363569516,0.00050238,94488.0,94487.0,0.6254869]
[1736363569732,0.211571,94531.0,94487.0,0.4148179]
[1736363569929,0.10429976,94530.0,94493.0,0.023]
[1736363570155,0.211552,94539.0,94522.0,0.211589]
[1736363570375,0.211557,94537.0,94517.0,0.2116]
[1736363570542,0.10429976,94536.0,94495.0,0.15]
[1736363570776,0.211573,94530.0,94497.0,0.15]
[1736363570980,0.31587276,94530.0,94500.0,0.023]
[1736363571195,0.52744576,94530.0,94516.0,0.18960399]
[1736363571393,0.211593,94521.0,94506.0,0.211624]
[1736363571601,0.211582,94526.0,94503.0,0.211633]
[1736363571806,0.15794434,94529.0,94500.0,0.00015111]
[1736363571807,0.10429976,94520.0,94500.0,0.00015111]
[1736363572182,0.211611,94513.0,94501.0,0.211637]
[1736363572326,0.10429976,94512.0,94500.0,0.00015111]
[1736363572531,0.15705084,94512.0,94500.0,0.00015111]
[1736363572950,0.211597,94520.0,94500.0,0.00015111]
[1736363573158,0.211597,94519.0,94508.0,0.211622]
[1736363573475,0.211609,94514.0,94500.0,0.00115111]
[1736363573758,0.211588,94524.0,94500.0,0.00115111]
[1736363573965,0.10429976,94513.0,94500.0,0.00015111]
[1736363574132,0.03159068,94512.0,94500.0,0.00015111]
[1736363574332,0.10429976,94511.0,94500.0,0.00015111]
[1736363574535,0.10429976,94511.0,94501.0,0.211637]
[1736363574784,0.24320368,94512.0,94500.0,0.00015111]
[1736363574785,0.001,94512.0,94500.0,0.00015111]
[1736363575148,0.211615,94511.0,94500.0,0.00015111]
[1736363575346,0.10529976,94512.0,94500.0,0.00015111]
[1736363575549,0.10529976,94512.0,94511.0,0.211615]
[1736363575550,0.001,94512.0,94511.0,0.211615]
[1736363575751,0.001,94512.0,94501.0,0.211637]
[1736363575951,0.001,94512.0,94508.0,0.21162]
[1736363576200,0.001,94512.0,94508.0,0.40124099]
[1736363576397,0.002,94524.0,94513.0,0.21161]
[1736363576730,0.0213582,94523.0,94517.0,0.2116]
[1736363576915,0.0819,94544.0,94517.0,0.2116]
[1736363576916,0.211517,94555.0,94518.0,0.00105796]
[1736363577135,0.1,94578.0,94518.0,0.00105796]
[1736363577136,0.211539,94545.0,94518.0,0.02405778]
[1736363577297,0.1,94563.0,94518.0,0.02405778]
[1736363577298,0.211543,94543.0,94530.0,0.211571]
[1736363577498,0.211543,94543.0,94518.0,0.02405778]
[1736363577499,0.211554,94539.0,94526.0,0.21158]
[1736363577723,0.05273998,94538.0,94526.0,0.21158]
[1736363578076,0.211554,94539.0,94526.0,0.21158]
[1736363578280,0.211547,94542.0,94526.0,0.21158]
[1736363578478,0.10429976,94544.0,94531.0,0.211569]
[1736363578714,0.211543,94543.0,94528.0,0.0778]
[1736363579066,0.10429976,94544.0,94533.0,0.211565]
[1736363579285,0.26478038,94543.0,94529.0,0.211575]
[1736363579487,0.211553,94539.0,94528.0,0.0778]
[1736363579893,0.211565,94534.0,94526.0,0.00015111]
[1736363580097,0.211557,94537.0,94526.0,0.00015111]
[1736363580307,0.10429976,94536.0,94526.0,0.00015111]
[1736363580509,0.03158528,94535.0,94526.0,0.00015111]
[1736363580714,0.211571,94531.0,94526.0,0.00015111]
[1736363580913,0.03158528,94535.0,94526.0,0.00015111]
[1736363581170,0.211543,94544.0,94526.0,0.00015111]
[1736363581171,0.211511,94558.0,94543.0,0.211541]
[1736363581384,0.01656057,94549.0,94546.0,0.211536]
[1736363581643,0.01656057,94549.0,94528.0,0.173]
[1736363581644,0.01656057,94549.0,94542.0,0.211545]
[1736363582142,0.01656057,94549.0,94546.0,0.211536]
[1736363582345,0.01656057,94549.0,94543.0,0.211543]
[1736363582595,0.211506,94560.0,94547.0,0.211534]
[1736363582804,0.10429976,94560.0,94543.0,0.211543]
[1736363583028,0.13587924,94560.0,94543.0,0.211543]
[1736363583260,0.10429976,94559.0,94540.0,0.211549]
[1736363583439,0.423044,94553.0,94540.0,0.211549]
[1736363583706,0.423044,94553.0,94537.0,0.211556]
[1736363583707,0.211519,94555.0,94542.0,0.211546]
[1736363583954,0.211499,94563.0,94543.0,0.00105767]
[1736363584245,0.009,94560.0,94559.0,0.211508]
[1736363584497,0.211473,94575.0,94560.0,0.211505]
[1736363584738,0.02153786,94590.0,94546.0,0.211537]
[1736363584739,0.008,94553.0,94546.0,0.211537]
[1736363584964,0.008,94553.0,94544.0,0.129]
[1736363584965,0.211452,94584.0,94549.0,0.5365]
[1736363585204,0.1,94605.0,94545.0,0.15]
[1736363585205,0.292191,94612.0,94561.0,0.0805]
[1736363585454,0.10429976,94609.0,94571.0,0.173]
[1736363585741,0.1859845,94616.0,94605.0,0.211404]
[1736363585993,0.0005034,94610.0,94599.0,0.211417]
[1736363586214,0.0005034,94610.0,94601.0,0.15]
[1736363586426,0.0005034,94610.0,94606.0,0.211401]
[1736363586652,0.0005034,94610.0,94608.0,0.211398]
[1736363586886,0.0005034,94610.0,94609.0,0.00105678]
[1736363587121,0.0005034,94610.0,94609.0,0.25429976]
[1736363587782,0.0015034,94610.0,94609.0,0.25429976]
[1736363587994,0.0015034,94610.0,94609.0,0.40189976]
[1736363588165,0.2113,94652.0,94620.0,0.361371]
[1736363588401,0.2113,94652.0,94620.0,0.46567076]
[1736363588612,0.211278,94662.0,94620.0,0.48867076]
[1736363588823,0.211275,94663.0,94648.0,0.211307]
[1736363589026,0.211275,94663.0,94625.0,0.1]
[1736363589027,0.211275,94663.0,94640.0,0.1938149]
[1736363589230,0.211275,94663.0,94649.0,0.211305]
[1736363589342,0.211275,94663.0,94644.0,0.211316]
[1736363589553,0.211264,94669.0,94640.0,0.29781782]
[1736363589763,0.211254,94673.0,94653.0,0.211297]
[1736363590045,0.211257,94671.0,94653.0,0.211297]
[1736363590159,0.211262,94669.0,94653.0,0.21144832]
[1736363590358,0.211276,94663.0,94653.0,0.00015132]
[1736363590590,0.10429976,94662.0,94653.0,0.00015132]
[1736363591020,0.211289,94657.0,94653.0,0.00015132]
[1736363591272,0.211289,94657.0,94653.0,0.001]
[1736363591512,0.211289,94657.0,94640.0,0.211327]
[1736363591714,0.211271,94666.0,94641.0,0.0010565]
[1736363591859,0.211278,94662.0,94648.0,0.211308]
[1736363592400,0.211282,94660.0,94638.0,0.00015135]
[1736363592569,0.10535677,94659.0,94638.0,0.00015135]
[1736363592788,0.211299,94653.0,94639.0,0.211329]
[1736363592993,0.211299,94653.0,94638.0,0.00015135]
[1736363593249,0.211323,94642.0,94638.0,0.00015135]
[1736363593473,0.211327,94640.0,94638.0,0.00015135]
[1736363593700,0.10535677,94639.0,94638.0,0.00115135]
[1736363593909,0.211323,94642.0,94638.0,0.00015135]
[1736363594115,0.10429976,94639.0,94638.0,0.00015135]
[1736363594322,0.10535677,94639.0,94638.0,0.00015135]
[1736363594751,0.10429976,94639.0,94638.0,0.00015135]
[1736363594972,0.211318,94644.0,94638.0,0.00015135]
[1736363594973,0.005,94640.0,94638.0,0.00115135]
[1736363595171,0.211329,94639.0,94638.0,0.00115135]
[1736363596131,0.211329,94639.0,94620.0,0.18952034]
[1736363596332,0.211343,94633.0,94620.0,0.18967173]
[1736363596534,0.211333,94637.0,94620.0,0.18967173]
[1736363596535,0.10429976,94632.0,94620.0,0.00015139]
[1736363596735,0.211368,94622.0,94620.0,0.00015139]
[1736363596965,0.10429976,94621.0,94620.0,0.00015139]
[1736363598048,0.10535677,94621.0,94620.0,0.00015139]
[1736363598247,0.10535677,94621.0,94620.0,0.00215139]
[1736363598460,0.02131576,94635.0,94620.0,0.00215139]
[1736363598461,0.0991286,94657.0,94620.0,0.00215139]
[1736363598792,0.211308,94649.0,94626.0,0.211358]
[1736363598985,0.10535677,94648.0,94632.0,0.211344]
[1736363599191,0.0777,94672.0,94640.0,0.211325]
[1736363599346,0.211266,94667.0,94630.0,0.211349]
[1736363599551,0.21131,94648.0,94630.0,0.211349]
[1736363599808,0.422623,94647.0,94630.0,0.211349]
[1736363599991,0.211311,94647.0,94635.0,0.211338]
[1736363600202,0.1536819,94666.0,94625.0,0.0761]
[1736363600203,0.10429976,94646.0,94625.0,0.0761]
[1736363600425,0.211338,94635.0,94625.0,0.0761]
[1736363600618,0.211338,94635.0,94618.0,0.211375]
[1736363600814,0.211338,94635.0,94621.0,0.211369]
[1736363600980,0.10535677,94634.0,94618.0,0.211375]
[1736363601180,0.211342,94633.0,94618.0,0.211375]
[1736363601409,0.10535677,94634.0,94612.0,0.336889]
[1736363601410,0.211347,94631.0,94612.0,0.336889]
[1736363601610,0.211351,94629.0,94617.0,0.211377]
[1736363601814,0.10429976,94630.0,94625.0,0.001]
[1736363602221,0.10429976,94630.0,94617.0,0.211377]
[1736363602500,0.10429976,94630.0,94621.0,0.211369]
[1736363602701,0.10429976,94630.0,94625.0,0.001]
[1736363602961,0.10429976,94630.0,94621.0,0.211369]
[1736363603135,0.001,94631.0,94617.0,0.211377]
[1736363603136,0.001,94631.0,94626.0,0.211357]
[1736363603309,0.002,94630.0,94622.0,0.211367]
[1736363603510,0.002,94630.0,94612.0,0.336887]
[1736363603511,0.211351,94629.0,94613.0,0.15]
[1736363603708,0.22298137,94629.0,94613.0,0.15]
[1736363603952,0.43433337,94629.0,94613.0,0.15]
[1736363604321,0.01163037,94629.0,94612.0,0.336887]
[1736363604531,0.211353,94628.0,94612.0,0.336887]
[1736363604741,0.211353,94628.0,94602.0,0.21141]
[1736363604742,0.211365,94624.0,94602.0,0.21141]
[1736363604952,0.13819198,94623.0,94598.0,0.083]
[1736363605154,0.13819198,94623.0,94592.0,0.211433]
[1736363605570,0.35429976,94621.0,94584.0,0.0795]
[1736363605780,0.47729976,94621.0,94575.0,0.21147]
[1736363605986,0.47729976,94621.0,94572.0,0.0795]
[1736363605987,0.1,94608.0,94572.0,0.0795]
[1736363606196,0.1,94608.0,94564.0,0.18949599]
[1736363606197,0.29807537,94600.0,94564.0,0.18949599]
[1736363606395,0.211446,94587.0,94572.0,0.0005034]
[1736363606662,0.10535677,94586.0,94572.0,0.0005034]
[1736363607107,0.211442,94589.0,94572.0,0.0005034]
[1736363607319,0.10429976,94588.0,94572.0,0.0005034]
[1736363607537,0.24301918,94587.0,94574.0,0.211474]
[1736363607739,0.211449,94586.0,94572.0,0.0005034]
[1736363607953,0.14487394,94587.0,94572.0,0.0005034]
[1736363607954,0.009,94587.0,94572.0,0.0005034]
[1736363608159,0.009,94587.0,94584.0,0.21145]
[1736363608574,0.009,94587.0,94585.0,0.00105719]
[1736363608792,0.009,94587.0,94579.0,0.211462]
[1736363609000,0.009,94587.0,94572.0,0.0005034]
[1736363609204,0.10429976,94586.0,94572.0,0.0005034]
[1736363609416,0.211471,94576.0,94572.0,0.0005034]
[1736363609626,0.211454,94583.0,94572.0,0.0005034]
[1736363609832,0.211458,94581.0,94572.0,0.0005034]
[1736363609980,0.31575776,94581.0,94572.0,0.0005034]
[1736363610214,0.10429976,94581.0,94572.0,0.0005034]
[1736363610639,0.21447,94576.0,94572.0,0.0005034]
[1736363610860,0.13628244,94575.0,94572.0,0.0005034]
[1736363611070,0.211474,94574.0,94572.0,0.0005034]
[1736363611292,0.10535677,94573.0,94572.0,0.0005034]
[1736363613529,0.10429976,94573.0,94572.0,0.0005034]
[1736363613765,0.10535677,94573.0,94572.0,0.0005034]
[1736363614015,0.18727634,94573.0,94572.0,0.0005034]
[1736363614246,0.11329976,94573.0,94572.0,0.0005034]
[1736363614726,0.013,94573.0,94572.0,0.0005034]
[1736363615163,0.10829976,94573.0,94572.0,0.0005034]
[1736363615515,0.004,94573.0,94572.0,0.0005034]
[1736363615716,0.211467,94578.0,94572.0,0.0005034]
[1736363615900,0.003,94573.0,94572.0,0.0005034]
[1736363616101,0.003,94573.0,94567.0,0.18999139]
[1736363616460,0.012,94573.0,94567.0,0.19014305]
[1736363616830,0.223477,94573.0,94567.0,0.00015166]
[1736363617033,0.211488,94568.0,94567.0,0.00015166]
[1736363617644,0.003,94573.0,94567.0,0.00015166]
[1736363618109,0.003,94573.0,94569.0,0.42297]
[1736363618319,0.003,94573.0,94571.0,0.211481]
[1736363618519,0.211425,94596.0,94572.0,0.0751]
[1736363618686,0.35811626,94595.0,94582.0,0.211455]
[1736363618907,0.14668926,94595.0,94583.0,0.211454]
[1736363619109,0.211413,94602.0,94587.0,0.211444]
[1736363619110,0.211414,94601.0,94587.0,0.211444]
[1736363619312,0.10429976,94600.0,94591.0,0.211436]
[1736363619526,0.10429976,94600.0,94588.0,0.211442]
[1736363619527,0.31571676,94600.0,94588.0,0.211442]
[1736363619770,0.34728844,94600.0,94588.0,0.211442]
[1736363619983,0.34728844,94600.0,94593.0,0.211431]
[1736363619984,0.13587144,94600.0,94593.0,0.211431]
[1736363620161,0.211385,94614.0,94584.0,0.15]
[1736363620371,0.211395,94610.0,94582.0,0.01196861]
[1736363620522,0.10429976,94609.0,94582.0,0.01196861]
[1736363620727,0.211398,94608.0,94595.0,0.211425]
[1736363620954,0.211385,94615.0,94581.0,0.2086444]
[1736363621123,0.003,94600.0,94581.0,0.14200119]
[1736363621329,0.002,94601.0,94582.0,0.15052856]
[1736363621523,0.002,94601.0,94599.0,0.211418]
[1736363621747,0.10535677,94614.0,94599.0,0.211418]
[1736363621748,0.004,94610.0,94599.0,0.211418]
[1736363621961,0.002,94608.0,94599.0,0.211418]
[1736363622156,0.002,94608.0,94589.0,0.211439]
[1736363622157,0.10562106,94607.0,94589.0,0.211439]
[1736363622357,0.00132137,94606.0,94581.0,0.02575703]
[1736363622580,0.211435,94592.0,94581.0,0.23721503]
[1736363622780,0.10429976,94605.0,94580.0,0.21146]
[1736363622781,0.211427,94596.0,94580.0,0.21146]
[1736363622943,0.31572676,94596.0,94584.0,0.21145]
[1736363623829,0.211407,94604.0,94575.0,0.15]
[1736363623998,0.211412,94602.0,94590.0,0.211437]
[1736363624201,0.10429976,94601.0,94590.0,0.211437]
[1736363624479,0.211405,94605.0,94595.0,0.211427]
[1736363624695,0.211405,94605.0,94581.0,0.0453]
[1736363624696,0.003,94596.0,94590.0,0.211438]
[1736363625098,0.04243064,94605.0,94590.0,0.211438]
[1736363625341,0.211415,94601.0,94590.0,0.211438]
[1736363625693,0.211424,94597.0,94586.0,0.211445]
[1736363626037,0.211433,94593.0,94590.0,0.001]
[1736363626161,0.10562137,94592.0,94573.0,0.211476]
[1736363626777,0.10562137,94592.0,94577.0,0.211467]
[1736363626778,0.211446,94587.0,94577.0,0.211467]
[1736363626976,0.211459,94581.0,94566.0,0.0457]
[1736363627192,0.10429976,94586.0,94571.0,0.21148]
[1736363627421,0.0013217,94589.0,94578.0,0.211465]
[1736363627626,0.10429976,94588.0,94580.0,0.21146]
[1736363628243,0.002,94581.0,94574.0,0.211474]
[1736363628454,0.10429976,94588.0,94578.0,0.211463]
[1736363628455,0.001,94586.0,94578.0,0.211463]
[1736363628627,0.001,94586.0,94582.0,0.211455]
[1736363629097,0.211406,94605.0,94571.0,0.01182946]
[1736363629306,0.001,94588.0,94586.0,0.211447]
[1736363629657,0.001,94588.0,94576.0,0.211468]
[1736363629858,0.001,94588.0,94571.0,0.21148]
[1736363629859,0.10529976,94588.0,94571.0,0.21148]
[1736363630056,0.211447,94586.0,94552.0,0.0456]
[1736363630286,0.211466,94578.0,94565.0,0.211492]
[1736363630463,0.0211466,94577.0,94565.0,0.422985]
[1736363630846,0.211472,94575.0,94561.0,0.211503]
[1736363631067,0.21148,94572.0,94561.0,0.211503]
[1736363631291,0.21147,94576.0,94561.0,0.211503]
[1736363631501,0.31576976,94576.0,94561.0,0.423006]
[1736363631649,0.211474,94574.0,94565.0,0.001]
[1736363632084,0.03369164,94575.0,94565.0,0.001]
[1736363632085,0.21279778,94573.0,94565.0,0.001]
[1736363632335,0.002,94572.0,94565.0,0.001]
[1736363632534,0.002,94572.0,94565.0,0.211494]
[1736363632740,0.002,94572.0,94570.0,0.211483]
[1736363633193,0.002,94572.0,94561.0,0.00015166]
[1736363633359,0.002,94572.0,94571.0,0.211481]
[1736363633572,0.211448,94586.0,94576.0,0.211468]
[1736363633876,0.0422887,94585.0,94576.0,0.211468]
[1736363634230,0.211439,94590.0,94576.0,0.211468]
[1736363634433,0.211443,94588.0,94576.0,0.211468]
[1736363634654,0.21143,94594.0,94577.0,0.00052918]
[1736363634895,0.001,94586.0,94583.0,0.211453]
[1736363635304,0.002,94585.0,94583.0,0.422906]
[1736363635511,0.10429976,94594.0,94586.0,0.211445]
[1736363635731,0.001,94588.0,94586.0,0.211445]
[1736363635922,0.001,94588.0,94587.0,0.0818]
[1736363636142,0.001,94588.0,94587.0,0.05979999]
[1736363636872,0.001,94588.0,94587.0,0.20979999]
[1736363637072,0.006,94594.0,94593.0,0.361432]
[1736363637413,0.211363,94624.0,94594.0,0.15]
[1736363637612,0.211363,94624.0,94593.0,0.361432]
[1736363637613,0.211367,94622.0,94609.0,0.211396]
[1736363637789,0.211349,94631.0,94593.0,0.211432]
[1736363638043,0.10562087,94630.0,94600.0,0.19344767]
[1736363638277,0.10429976,94630.0,94621.0,0.211368]
[1736363638488,0.00050368,94631.0,94624.0,0.211361]
[1736363638685,0.00050368,94631.0,94604.0,0.15]
[1736363638859,0.00050368,94631.0,94622.0,0.211365]
[1736363639223,0.10429976,94630.0,94616.0,0.0796]
[1736363639449,0.10429976,94630.0,94617.0,0.211377]
[1736363639450,0.01048034,94629.0,94617.0,0.211377]
[1736363639650,0.10429976,94630.0,94617.0,0.211377]
[1736363639862,0.211362,94625.0,94613.0,0.211385]
[1736363640248,0.211352,94629.0,94617.0,0.211378]
[1736363640454,0.21136,94625.0,94613.0,0.211385]
[1736363640653,0.21137,94621.0,94605.0,0.211404]
[1736363640834,0.1570513,94625.0,94606.0,0.211402]
[1736363641176,0.10429976,94620.0,94600.0,0.07215385]
[1736363641396,0.211387,94613.0,94599.0,0.211418]
[1736363641687,0.211394,94610.0,94598.0,0.21142]
[1736363641894,0.15832861,94609.0,94591.0,0.211435]
[1736363642134,0.211409,94604.0,94591.0,0.211435]
[1736363642312,0.31570876,94604.0,94591.0,0.211435]
[1736363642746,0.211412,94602.0,94589.0,0.21144]
[1736363642986,0.10429976,94601.0,94589.0,0.21144]
[1736363643203,0.10429976,94601.0,94579.0,0.0789]
[1736363643204,0.211418,94599.0,94583.0,0.211454]
[1736363643421,0.211428,94595.0,94583.0,0.211454]
[1736363643599,0.211434,94592.0,94582.0,0.211456]
[1736363643804,0.10429976,94594.0,94576.0,0.3526988]
[1736363644040,0.10429976,94594.0,94577.0,0.211467]
[1736363644213,0.10480313,94594.0,94581.0,0.211458]
[1736363644418,0.10480313,94594.0,94570.0,0.01507621]
[1736363644419,0.00050337,94594.0,94571.0,0.15]
[1736363644596,0.00050337,94594.0,94591.0,0.211435]
[1736363645000,0.00050337,94594.0,94588.0,0.211442]
[1736363645001,0.02119204,94593.0,94588.0,0.211442]
[1736363645203,0.02119204,94593.0,94571.0,0.15]
[1736363645382,0.00050337,94594.0,94585.0,0.211448]
[1736363645588,0.211432,94593.0,94582.0,0.211455]
[1736363645795,0.00050337,94594.0,94591.0,0.001]
[1736363646008,0.211432,94593.0,94580.0,0.18945999]
[1736363646450,0.211436,94591.0,94581.0,0.211458]
[1736363646697,0.14676905,94590.0,94577.0,0.15]
[1736363646837,0.00050337,94594.0,94578.0,0.00052907]
[1736363647064,0.00050337,94594.0,94588.0,0.211441]
[1736363647325,0.00050337,94594.0,94572.0,0.15]
[1736363647518,0.00050337,94594.0,94589.0,0.21144]
[1736363647990,0.00150337,94594.0,94589.0,0.21144]
[1736363648193,0.00150337,94594.0,94593.0,0.211432]
[1736363648406,0.00050337,94594.0,94593.0,0.211432]
[1736363648773,0.00050337,94594.0,94590.0,0.211438]
[1736363648971,0.00050337,94594.0,94578.0,0.211464]
[1736363649176,0.12681412,94593.0,94589.0,0.001]
[1736363649382,0.211434,94592.0,94589.0,0.002]
[1736363649600,0.211438,94590.0,94589.0,0.001]
[1736363649783,0.31573776,94590.0,94589.0,0.001]
[1736363649995,0.00050337,94594.0,94589.0,0.001]
[1736363650516,0.00050337,94594.0,94590.0,0.211438]
[1736363650667,0.00050337,94594.0,94589.0,0.001]
[1736363650871,0.02269521,94594.0,94587.0,0.01464544]
[1736363651106,0.02269521,94594.0,94588.0,0.18944299]
[1736363651304,0.02569521,94594.0,94586.0,0.211445]
[1736363651508,0.00450337,94594.0,94590.0,0.211437]
[1736363651756,0.01050337,94594.0,94590.0,0.211437]
[1736363651952,0.00650337,94594.0,94574.0,0.15]
[1736363652152,0.00050337,94594.0,94576.0,0.15]
[1736363652419,0.211434,94592.0,94574.0,0.01476101]
[1736363652622,0.10562133,94591.0,94570.0,0.5365]
[1736363652945,0.21145,94585.0,94570.0,0.5365]
[1736363653353,0.211441,94589.0,94575.0,0.21147]
[1736363653630,0.211441,94589.0,94570.0,0.5365]
[1736363653631,0.00050337,94594.0,94577.0,0.211467]
[1736363653812,0.00050337,94594.0,94584.0,0.211451]
[1736363654127,0.23262524,94593.0,94572.0,0.211479]
[1736363654346,0.125493,94593.0,94577.0,0.211466]
[1736363654551,0.211445,94588.0,94577.0,0.211466]
[1736363654753,0.10562135,94587.0,94574.0,0.001]
[1736363654993,0.211463,94580.0,94570.0,0.5365]
[1736363655195,0.10429976,94579.0,94564.0,0.09480174]
[1736363655397,0.00132184,94578.0,94564.0,0.09480174]
[1736363655609,0.422976,94568.0,94564.0,0.09480174]
[1736363655993,0.00132185,94567.0,94564.0,0.09480174]
[1736363656202,0.31547714,94566.0,94545.0,0.07280173]
[1736363656496,0.423062,94549.0,94545.0,0.07280173]
[1736363656699,0.211535,94547.0,94545.0,0.07280173]
[1736363656870,0.10429976,94546.0,94545.0,0.07280173]
[1736363657598,0.27862199,94546.0,94545.0,0.07280173]
[1736363657735,0.37729976,94546.0,94545.0,0.07050508]
[1736363657940,0.37729976,94546.0,94504.0,0.211629]
[1736363657941,0.211613,94512.0,94511.0,0.1412308]
[1736363658251,0.31591276,94512.0,94511.0,0.1412308]
[1736363659265,0.31591276,94512.0,94511.0,0.00015168]
[1736363659476,0.32091276,94512.0,94511.0,0.00015168]
[1736363660012,0.31691276,94512.0,94511.0,0.00015168]
[1736363660169,0.39492454,94512.0,94511.0,0.00015168]
[1736363661180,0.211615,94511.0,94485.0,0.211672]
[1736363661387,0.10562263,94510.0,94485.0,0.21182371]
[1736363661815,0.21162,94509.0,94485.0,0.00015171]
[1736363662010,0.10562255,94508.0,94485.0,0.00015171]
[1736363662186,0.423286,94499.0,94485.0,0.00015171]
[1736363662387,0.10429976,94498.0,94487.0,0.211669]
[1736363662590,0.211638,94501.0,94487.0,0.211669]
[1736363662820,0.10429976,94500.0,94487.0,0.211669]
[1736363663065,0.001,94510.0,94492.0,0.211657]
[1736363663066,0.214622,94509.0,94492.0,0.211657]
[1736363663269,0.12586196,94508.0,94496.0,0.211647]
[1736363664123,0.33748596,94508.0,94493.0,0.211655]
[1736363665152,0.33748596,94508.0,94498.0,0.211644]
[1736363665325,0.0235622,94508.0,94498.0,0.211642]
[1736363665543,0.10429976,94507.0,94492.0,0.01510279]
[1736363665750,0.33944128,94507.0,94491.0,0.211658]
[1736363665949,0.12781728,94507.0,94486.0,0.211671]
[1736363666293,0.211638,94501.0,94486.0,0.423342]
[1736363666426,0.211642,94499.0,94486.0,0.423342]
[1736363666630,0.10429976,94499.0,94486.0,0.423342]
[1736363666874,0.10429976,94499.0,94491.0,0.211659]
[1736363667452,0.0235622,94508.0,94486.0,0.22654874]
[1736363667453,0.002,94508.0,94487.0,0.423338]
[1736363667679,0.001,94507.0,94501.0,0.211637]
[1736363667881,0.001,94507.0,94491.0,0.15]
[1736363668284,0.001,94507.0,94498.0,0.211644]
[1736363668285,0.0212611,94506.0,94498.0,0.211644]
[1736363668593,0.10429976,94505.0,94489.0,0.211662]
[1736363668791,0.10429976,94505.0,94485.0,0.01529489]
[1736363668792,0.211631,94504.0,94486.0,0.211671]
[1736363668963,0.31725662,94503.0,94486.0,0.211671]
[1736363669195,0.31593376,94503.0,94486.0,0.211671]
[1736363669397,0.211644,94499.0,94486.0,0.211671]
[1736363669577,0.10429976,94498.0,94487.0,0.211669]
[1736363669975,0.10429976,94498.0,94491.0,0.001]
[1736363670358,0.211646,94497.0,94491.0,0.001]
[1736363670563,0.00132286,94496.0,94485.0,0.00015171]
[1736363670954,0.211656,94493.0,94487.0,0.001]
[1736363671170,0.03510881,94495.0,94487.0,0.001]
[1736363671766,0.31594576,94497.0,94487.0,0.001]
[1736363671949,0.10429976,94497.0,94487.0,0.212668]
[1736363672163,0.00132287,94502.0,94494.0,0.211652]
[1736363672372,0.211629,94505.0,94494.0,0.211652]
[1736363672531,0.211633,94503.0,94494.0,0.211652]
[1736363672874,0.0212611,94506.0,94498.0,0.211643]
[1736363673025,0.10429976,94506.0,94498.0,0.211643]
[1736363673453,0.10429976,94506.0,94495.0,0.211651]
[1736363673657,0.004,94503.0,94497.0,0.211645]
[1736363673857,0.005,94503.0,94485.0,0.00015171]
[1736363674063,0.03209258,94502.0,94495.0,0.21165]
[1736363674305,0.004,94503.0,94491.0,0.21166]
[1736363674482,0.004,94503.0,94496.0,0.211647]
[1736363674661,0.004,94503.0,94494.0,0.211652]
[1736363674859,0.10429976,94506.0,94494.0,0.211652]
[1736363675084,0.10429976,94506.0,94498.0,0.211643]
[1736363675260,0.004,94506.0,94502.0,0.211634]
[1736363675459,0.15,94533.0,94485.0,0.01527116]
[1736363675460,0.211617,94511.0,94485.0,0.01527116]
[1736363675675,0.0211617,94510.0,94499.0,0.211642]
[1736363675873,0.003,94503.0,94492.0,0.211656]
[1736363676079,0.10429976,94502.0,94487.0,0.18966899]
[1736363676259,0.31593476,94502.0,94487.0,0.18966899]
[1736363676662,0.211645,94498.0,94487.0,0.18966899]
[1736363676942,0.05285798,94497.0,94487.0,0.18966899]
[1736363677280,0.05285798,94497.0,94491.0,0.211659]
[1736363677731,0.10429976,94496.0,94485.0,0.00015171]
[1736363677933,0.211668,94488.0,94485.0,0.00015171]
[1736363678136,0.10562281,94487.0,94485.0,0.00015171]
[1736363678553,0.211671,94486.0,94485.0,0.00015171]
[1736363678758,0.31597076,94486.0,94485.0,0.00015171]
[1736363678954,0.33249031,94486.0,94485.0,0.00015171]
[1736363679989,0.33649031,94486.0,94485.0,0.00015171]
[1736363680398,0.35436159,94486.0,94485.0,0.00015171]
[1736363680807,0.52561511,94486.0,94485.0,0.00015171]
[1736363681207,0.211729,94461.0,94450.0,0.211751]
[1736363681363,0.33720166,94461.0,94450.0,0.21225338]
[1736363681983,0.12547266,94461.0,94450.0,0.21225338]
[1736363682394,0.211729,94460.0,94450.0,0.00050238]
[1736363682593,0.12547266,94461.0,94450.0,0.00050238]
[1736363682774,0.211742,94455.0,94450.0,0.00050238]
[1736363682976,0.05489467,94454.0,94450.0,0.00050238]
[1736363683206,0.42481458,94453.0,94450.0,0.00150238]
[1736363683400,0.36175,94451.0,94450.0,0.00150238]
[1736363683630,0.48685748,94451.0,94450.0,0.00150238]
[1736363683829,0.48685748,94451.0,94450.0,0.00050238]
[1736363684040,0.72068325,94451.0,94450.0,0.00050238]
[1736363684242,0.72086864,94451.0,94450.0,0.00250238]
[1736363684648,0.59115724,94451.0,94450.0,0.00250238]
[1736363684874,0.42034952,94451.0,94450.0,0.00050238]
[1736363685072,0.31604976,94451.0,94450.0,0.00050238]
[1736363685416,0.32504976,94451.0,94450.0,0.00050238]